bitfinex/quotes_ETHUSD_20251125
["timestamp","ask_amount","ask_price","bid_price","bid_amount"]
[1764105409383,0.4807,2940.5,2940.4,4.34249194]
[1764105409690,0.4807,2940.5,2939.5,3.40187824]
[1764105409691,0.4807,2940.5,2939.3,3.40209235]
[1764105409848,0.5912,2940.4,2939.5,0.216]
[1764105410054,0.5912,2940.4,2939.6,0.405504]
[1764105410252,0.5912,2940.4,2939.6,0.4649]
[1764105410661,0.5912,2940.4,2939.8,0.72559411]
[1764105411464,0.4711,2939.9,2939.8,0.72559411]
[1764105411760,0.4741,2940.4,2939.8,0.72559411]
[1764105411761,0.4741,2940.4,2939.8,1.13109811]
[1764105411974,0.4741,2940.4,2939.8,1.58979811]
[1764105412686,0.4741,2940.4,2939.9,6.80295248]
[1764105413050,0.4711,2940.0,2939.9,4.12707035]
[1764105413252,0.4711,2940.0,2939.9,4.34307035]
[1764105413486,0.9565,2940.0,2939.9,0.72559411]
[1764105414286,0.9565,2940.0,2939.7,0.72559411]
[1764105414589,0.6685,2939.9,2939.7,0.72559411]
[1764105414793,0.4711,2939.8,2939.7,4.12730176]
[1764105414947,0.9565,2939.8,2939.7,4.12730176]
[1764105417394,0.4711,2939.8,2939.7,4.12730176]
[1764105417860,0.9565,2939.8,2939.7,4.12730176]
[1764105418913,0.9565,2939.8,2939.6,3.40179367]
[1764105418914,0.9565,2939.8,2939.6,4.12737397]
[1764105419191,0.606,2939.7,2938.2,3.40344428]
[1764105419358,0.4676,2939.6,2938.3,0.216]
[1764105419560,0.4676,2939.6,2938.4,0.405504]
[1764105419785,0.4673,2939.5,2938.4,0.405504]
[1764105420094,0.4673,2939.5,2938.3,0.72559411]
[1764105420254,0.4673,2939.5,2938.6,6.80596202]
[1764105420656,3.86924033,2939.5,2938.6,7.02196202]
[1764105420906,0.4673,2939.5,2938.7,0.72559411]
[1764105421199,0.4673,2939.4,2938.7,0.72559411]
[1764105421417,0.6762,2938.8,2938.7,0.72559411]
[1764105421588,0.4673,2939.4,2938.6,7.02196202]
[1764105421786,0.4673,2939.4,2938.7,0.72559411]
[1764105422305,0.6762,2938.8,2938.7,0.72559411]
[1764105422589,0.6762,2938.8,2938.6,3.61898101]
[1764105422759,0.589,2938.7,2938.6,4.34457512]
[1764105422958,0.1217,2938.7,2938.6,4.34457512]
[1764105424170,0.1911,2938.8,2938.6,7.74755613]
[1764105424485,0.4851,2938.7,2938.6,3.61898101]
[1764105424688,0.4851,2938.7,2938.5,4.12864318]
[1764105424913,0.589,2938.6,2938.5,4.12864318]
[1764105425569,0.589,2938.6,2938.5,0.72559411]
[1764105427079,0.589,2938.6,2938.5,4.12869092]
[1764105436673,0.1217,2938.6,2938.5,4.12869092]
[1764105438271,0.216,2939.3,2938.5,8.01538773]
[1764105438587,0.6833,2939.5,2938.5,11.41848454]
[1764105439100,0.4673,2939.4,2938.5,11.41848454]
[1764105439886,0.002,2938.6,2938.5,4.61229092]
[1764105440283,0.002,2938.6,2938.5,5.07459092]
[1764105440480,3.4016715,2939.8,2938.5,5.07459092]
[1764105440481,0.91414225,2940.2,2938.6,4.84122611]
[1764105440686,0.4571,2940.3,2939.2,0.405504]
[1764105440917,0.4571,2940.3,2939.4,0.405504]
[1764105442201,0.4571,2940.3,2939.4,0.867804]
[1764105442412,0.4571,2940.3,2939.6,0.72559411]
[1764105442582,0.4571,2940.3,2939.7,0.216]
[1764105443611,0.4571,2940.3,2939.9,0.72559411]
[1764105445711,0.4571,2940.3,2940.0,3.40136054]
[1764105445872,0.4667,2939.9,2939.3,0.72559411]
[1764105446077,0.1388,2939.8,2939.3,7.74593527]
[1764105446278,0.4571,2939.7,2939.3,7.74593527]
[1764105446719,0.4571,2939.7,2939.3,11.14810585]
[1764105448701,0.1943,2939.9,2939.3,11.14810585]
[1764105448914,0.6514,2939.9,2939.3,11.14810585]
[1764105449114,0.1943,2939.9,2939.3,11.14810585]
[1764105449310,0.4571,2939.8,2939.3,11.14810585]
[1764105450123,0.002,2940.4,2939.7,0.4534]
[1764105450327,0.002,2940.4,2940.3,0.4534]
[1764105452050,0.002,2940.4,2940.3,0.9157]
[1764105452215,0.002,2940.4,2940.3,5.04230761]
[1764105453100,0.002,2940.4,2940.3,5.44781161]
[1764105453304,0.002,2940.4,2940.3,10.20326673]
[1764105453530,0.002,2940.4,2940.3,5.66381161]
[1764105456144,3.61516461,2941.9,2940.3,5.66381161]
[1764105456145,0.6482,2942.1,2940.4,1.13109811]
[1764105456437,0.4571,2942.0,2941.1,0.405504]
[1764105456643,0.4571,2942.0,2941.2,0.216]
[1764105456822,0.4571,2942.0,2940.9,0.405504]
[1764105457010,0.4571,2942.0,2941.1,0.405504]
[1764105457714,0.4571,2942.0,2941.1,0.588204]
[1764105458214,0.4571,2942.0,2941.3,0.72559411]
[1764105458548,0.4571,2942.0,2941.4,0.216]
[1764105460220,0.4571,2942.0,2941.5,6.79925208]
[1764105460621,0.4667,2941.6,2941.4,3.3997378]
[1764105460835,0.1266,2941.5,2941.4,4.34133191]
[1764105461331,0.1266,2941.5,2941.4,3.3997378]
[1764105461332,0.5837,2941.5,2941.4,3.3997378]
[1764105461750,0.5837,2941.5,2941.1,3.40005805]
[1764105461941,0.4667,2941.2,2941.1,4.12565216]
[1764105462137,0.4571,2942.0,2941.1,4.12565216]
[1764105462466,0.4571,2942.0,2941.2,0.72559411]
[1764105463370,3.59255665,2942.7,2941.3,0.405504]
[1764105463569,0.4571,2942.6,2941.5,0.405504]
[1764105463956,0.4571,2942.6,2941.7,0.405504]
[1764105464160,0.4571,2942.6,2941.8,0.216]
[1764105464344,0.4571,2942.6,2941.9,6.7983276]
[1764105464744,0.4667,2942.0,2941.9,4.12475791]
[1764105464971,0.4571,2942.6,2941.9,7.52392171]
[1764105465195,0.4571,2942.5,2941.9,7.52392171]
[1764105465347,0.4571,2942.5,2941.9,10.92308551]
[1764105465548,0.1943,2942.7,2942.0,0.72559411]
[1764105465748,0.4571,2942.4,2942.0,0.72559411]
[1764105467063,0.4571,2942.4,2942.1,6.79786546]
[1764105467885,0.1943,2942.7,2942.1,6.98056546]
[1764105468090,0.4571,2942.8,2942.3,0.4534]
[1764105468682,0.4571,2942.8,2942.2,0.216]
[1764105469043,0.4571,2942.8,2942.3,6.79740338]
[1764105469273,0.1943,2942.9,2942.3,10.19610507]
[1764105469469,0.4571,2942.8,2942.3,6.79740338]
[1764105469674,0.4667,2942.4,2942.3,3.39870169]
[1764105470792,0.6942,2942.9,2942.3,7.26330338]
[1764105471106,0.6942,2943.3,2942.5,0.4659]
[1764105471270,0.6942,2943.3,2942.6,7.01271038]
[1764105471467,0.4999,2943.2,2942.6,10.41106557]
[1764105471691,0.4999,2943.2,2942.6,7.01271038]
[1764105472007,0.4999,2943.2,2942.6,3.61435519]
[1764105472008,0.5555,2942.7,2942.6,3.61435519]
[1764105472414,0.4999,2943.2,2942.6,11.36326557]
[1764105472572,0.1943,2943.3,2942.6,10.87696557]
[1764105472779,0.6868,2943.5,2942.7,1.21189411]
[1764105473384,0.6868,2943.5,2942.8,10.19437269]
[1764105474191,0.1869,2943.5,2942.8,6.79624846]
[1764105474400,0.4999,2943.4,2942.9,0.216]
[1764105475270,0.1869,2943.5,2943.0,6.7957866]
[1764105475474,0.1943,2944.1,2943.1,0.72559411]
[1764105475791,0.4999,2944.0,2943.1,1.39129411]
[1764105475997,0.4999,2944.0,2943.1,0.72559411]
[1764105477596,0.4999,2944.0,2943.3,0.72559411]
[1764105478003,0.4999,2944.0,2943.3,0.94159411]
[1764105479493,0.4999,2944.0,2943.4,6.79486308]
[1764105480528,0.4999,2944.0,2943.4,10.19229462]
[1764105482630,0.4788,2943.5,2943.4,4.12302565]
[1764105482929,0.1943,2944.1,2943.5,0.72559411]
[1764105483229,0.72844896,2944.4,2943.5,1.20119411]
[1764105483395,0.4872,2944.6,2943.6,0.4756]
[1764105483596,0.72842096,2944.5,2943.8,6.7939398]
[1764105484030,0.4872,2944.4,2943.8,6.7939398]
[1764105484238,0.4872,2944.4,2943.5,0.72559411]
[1764105484239,0.5893,2943.9,2943.5,0.72559411]
[1764105484408,0.4758,2943.6,2943.1,0.72559411]
[1764105484605,0.1105,2943.9,2943.1,1.20119411]
[1764105484806,0.1105,2943.9,2943.2,0.216]
[1764105484807,0.4872,2943.8,2943.2,0.216]
[1764105485203,0.4872,2943.8,2943.0,10.19359023]
[1764105485637,0.4872,2943.8,2943.1,0.216]
[1764105486942,0.4872,2943.8,2942.9,10.19402628]
[1764105486943,0.4788,2943.2,2942.9,6.79601752]
[1764105487121,0.72872737,2943.7,2942.9,6.79601752]
[1764105487325,0.4872,2944.2,2943.6,0.4517]
[1764105487630,0.1801,2943.9,2943.2,0.216]
[1764105487830,0.1801,2943.9,2943.3,10.19264091]
[1764105488009,0.6673,2943.9,2943.3,10.19264091]
[1764105488745,0.6673,2943.9,2943.4,0.72559411]
[1764105489240,0.4788,2943.5,2943.4,0.72559411]
[1764105489429,0.4788,2943.5,2943.3,6.79509394]
[1764105489430,0.4788,2943.5,2943.3,3.39754697]
[1764105489625,0.5977,2943.4,2943.3,3.39754697]
[1764105489935,0.5977,2943.4,2943.0,7.73738071]
[1764105490137,0.4752,2943.3,2943.0,7.73738071]
[1764105490543,0.1142,2943.1,2943.0,3.3978933]
[1764105491224,0.6014,2943.1,2943.0,3.3978933]
[1764105491633,0.1142,2943.1,2943.0,3.3978933]
[1764105491843,0.6014,2943.1,2943.0,3.3978933]
[1764105492049,0.6014,2943.1,2942.9,3.39800021]
[1764105492050,0.6014,2943.1,2942.9,6.79600897]
[1764105492224,0.4715,2943.0,2942.9,3.39800021]
[1764105492758,0.9587,2943.0,2942.9,3.39800021]
[1764105493460,0.4872,2943.5,2942.9,3.39800021]
[1764105493650,0.4788,2943.0,2942.9,3.39800021]
[1764105494259,0.966,2943.0,2942.8,0.72559411]
[1764105494467,0.1105,2942.9,2942.8,0.72559411]
[1764105494825,0.4872,2943.3,2942.8,1.17729411]
[1764105495025,0.4872,2943.3,2943.0,0.001]
[1764105495447,0.4788,2943.1,2943.0,0.001]
[1764105497168,0.966,2943.1,2943.0,0.001]
[1764105498765,2.01579448,2943.1,2943.0,0.001]
[1764105499647,2.01573805,2943.1,2943.0,0.001]
[1764105501687,5.4135159,2943.1,2943.0,0.001]
[1764105501975,6.32765815,2943.1,2943.0,0.001]
[1764105503368,6.32826535,2943.1,2943.0,0.001]
[1764105505371,6.32826535,2943.1,2941.5,3.39959432]
[1764105505372,17.65269701,2943.1,2941.5,3.39959432]
[1764105505578,0.1105,2942.2,2941.5,6.79922036]
[1764105505790,0.216,2942.6,2941.6,1.20219411]
[1764105505940,0.4044,2942.6,2942.1,0.464]
[1764105506140,0.8592,2942.6,2942.1,0.464]
[1764105506552,0.4548,2942.5,2942.1,0.464]
[1764105506761,0.4833,2942.2,2941.7,0.4766]
[1764105506966,0.4548,2942.5,2941.6,0.72559411]
[1764105506967,0.1367,2941.8,2941.6,0.72559411]
[1764105507166,0.1367,2941.8,2941.2,0.1811]
[1764105507167,0.62,2941.7,2941.4,3.39969178]
[1764105507368,3.39887525,2942.2,2941.3,6.7997144]
[1764105507868,0.4548,2942.1,2941.3,6.7997144]
[1764105508257,0.4548,2942.1,2941.3,3.3998572]
[1764105508452,0.4548,2942.1,2941.3,6.7997144]
[1764105508893,0.4548,2942.1,2941.3,3.3998572]
[1764105509094,0.4833,2941.4,2941.2,3.39994361]
[1764105509271,0.141,2941.3,2941.0,0.216]
[1764105509471,3.85388474,2942.0,2941.0,7.74194407]
[1764105509662,0.1884,2941.7,2941.2,0.464]
[1764105510193,0.1884,2941.7,2941.2,0.9406]
[1764105511385,0.6432,2941.7,2941.3,3.3998572]
[1764105513067,0.216,2942.0,2941.3,6.7997144]
[1764105513278,0.4548,2942.4,2941.6,0.464]
[1764105513489,0.6708,2942.4,2941.7,6.7987898]
[1764105513796,0.6708,2942.4,2941.7,7.2753898]
[1764105514975,0.6243,2941.8,2941.1,3.40105382]
[1764105515163,0.1879,2941.2,2941.1,3.40104764]
[1764105515562,3.54035833,2941.8,2941.1,0.001]
[1764105515870,0.4548,2941.6,2941.1,0.001]
[1764105516475,0.4833,2941.2,2941.1,0.001]
[1764105516996,0.4548,2941.6,2941.1,0.465]
[1764105517184,0.4548,2941.6,2941.1,0.001]
[1764105517770,0.4833,2941.2,2941.1,0.001]
[1764105518498,0.4548,2941.5,2941.1,0.465]
[1764105518794,0.4548,2941.7,2941.1,0.465]
[1764105519908,3.854199,2941.7,2941.2,3.3999728]
[1764105520395,0.4548,2941.6,2941.2,3.3999728]
[1764105521900,0.4833,2941.3,2941.1,0.001]
[1764105522100,0.1879,2941.2,2941.1,0.001]
[1764105522514,0.4548,2941.7,2941.1,0.001]
[1764105522687,3.8542015,2941.7,2941.1,0.465]
[1764105523020,0.4548,2941.6,2941.1,0.465]
[1764105523198,0.4548,2941.6,2941.1,0.001]
[1764105523588,0.357,2941.8,2941.1,0.1821]
[1764105523884,0.357,2941.8,2941.2,3.3999728]
[1764105524089,0.357,2941.8,2941.2,6.7999456]
[1764105524503,6.8248,2942.2,2941.3,0.4766]
[1764105525019,0.4548,2942.1,2941.3,0.4766]
[1764105525808,0.4548,2942.1,2941.4,6.79948322]
[1764105526217,6.37,2942.2,2942.0,0.464]
[1764105526425,0.1884,2942.6,2942.1,0.464]
[1764105526426,0.4044,2942.6,2942.1,0.464]
[1764105526722,0.6432,2942.6,2942.1,0.464]
[1764105527125,4.04155921,2942.6,2942.1,0.464]
[1764105527618,0.6432,2942.6,2942.1,0.464]
[1764105527918,0.6432,2942.6,2942.2,3.39881721]
[1764105528323,7.0132,2942.9,2942.5,0.464]
[1764105528618,7.0132,2942.9,2942.2,6.79763442]
[1764105528820,10.4112552,2942.9,2942.2,6.79763442]
[1764105528992,0.4548,2942.8,2942.2,6.79763442]
[1764105530296,0.31768979,2942.7,2942.2,6.79763442]
[1764105530709,0.4548,2942.8,2942.3,0.72559411]
[1764105531001,6.5584,2942.9,2942.3,0.72559411]
[1764105531199,7.0182,2942.9,2942.3,0.72559411]
[1764105531510,6.5584,2942.9,2942.3,0.72559411]
[1764105531698,0.4598,2942.8,2942.3,0.72559411]
[1764105531898,6.7744,2942.9,2942.3,0.72559411]
[1764105532103,6.7744,2942.9,2942.4,3.39858618]
[1764105532623,7.2342,2942.9,2942.4,3.39858618]
[1764105532840,7.2342,2942.9,2942.4,6.79717236]
[1764105533331,0.4598,2942.8,2942.3,4.12423636]
[1764105533897,0.4598,2942.8,2942.3,7.52293805]
[1764105535533,6.7744,2942.9,2942.3,7.52293805]
[1764105535835,0.216,2942.9,2942.4,0.4595]
[1764105536408,0.4618,2943.1,2942.4,0.4595]
[1764105537053,0.4618,2943.1,2942.3,7.52293805]
[1764105537623,0.4618,2943.1,2942.3,10.92163974]
[1764105539459,0.002,2943.1,2942.3,10.92163974]
[1764105539755,0.4883,2943.1,2942.3,11.41543974]
[1764105542061,0.4883,2943.1,2942.3,8.01673805]
[1764105542962,0.002,2943.1,2942.4,0.4938]
[1764105543129,0.002,2943.1,2942.5,0.216]
[1764105543835,0.002,2943.1,2942.6,3.39835519]
[1764105544156,0.4883,2943.1,2942.6,3.39835519]
[1764105544663,0.002,2943.1,2942.6,3.39835519]
[1764105545046,0.4883,2943.1,2942.6,3.39835519]
[1764105545247,0.002,2943.1,2942.6,3.39835519]
[1764105545441,0.4863,2943.0,2942.6,3.39835519]
[1764105546043,0.002,2943.1,2942.6,3.39835519]
[1764105546244,0.4883,2943.1,2942.6,3.39835519]
[1764105546583,0.4883,2943.1,2942.2,3.39880062]
[1764105546584,0.5952,2942.7,2942.1,6.79786546]
[1764105546727,0.1855,2942.6,2942.3,0.216]
[1764105546934,0.13,2942.7,2942.0,7.01401866]
[1764105546935,0.4624,2942.2,2942.0,7.01401866]
[1764105547167,0.4624,2942.2,2942.0,6.79801866]
[1764105547537,0.4863,2942.6,2942.0,6.79801866]
[1764105549436,3.61401067,2942.9,2942.5,0.4717]
[1764105549661,0.4863,2943.0,2942.5,0.4717]
[1764105549869,0.002,2943.1,2942.6,0.4938]
[1764105550630,0.002,2943.1,2942.7,3.39823971]
[1764105551065,0.002,2943.1,2942.7,3.89203971]
[1764105551263,0.002,2943.1,2942.7,3.39823971]
[1764105551571,0.4883,2943.1,2942.7,3.39823971]
[1764105552470,0.002,2943.1,2942.7,3.39823971]
[1764105552669,0.002,2943.1,2942.6,3.39835032]
[1764105552670,0.002,2943.1,2942.5,0.4938]
[1764105553538,0.002,2943.1,2942.4,6.79717236]
[1764105553539,0.4652,2942.6,2942.4,6.79717236]
[1764105553940,0.1858,2942.5,2942.2,0.94159411]
[1764105554180,0.4624,2942.4,2942.2,0.94159411]
[1764105554383,0.1885,2942.3,2942.2,4.12441132]
[1764105554557,0.6748,2942.3,2942.2,4.12441132]
[1764105554872,0.1885,2942.3,2942.2,4.12441132]
[1764105555167,0.6748,2942.3,2942.2,4.12441132]
[1764105555340,0.1885,2942.3,2942.2,4.12441132]
[1764105556272,0.6748,2942.3,2942.2,4.12441132]
[1764105556951,0.6748,2942.3,2942.0,3.39998744]
[1764105557273,0.4597,2942.1,2942.0,3.39998744]
[1764105557949,0.4597,2942.1,2942.0,0.001]
[1764105558142,0.946,2942.1,2942.0,3.40004826]
[1764105561440,0.946,2942.1,2942.0,0.001]
[1764105561950,0.4597,2942.1,2942.0,0.001]
[1764105562370,0.944,2942.1,2942.0,0.001]
[1764105564044,1.05229737,2942.1,2942.0,0.001]
[1764105564245,5.4164301,2942.1,2942.0,0.001]
[1764105564478,6.14202421,2942.1,2942.0,0.001]
[1764105564675,7.05677366,2942.1,2942.0,0.001]
[1764105565578,1.13109811,2942.0,2941.6,0.001]
[1764105565759,0.3541,2941.7,2941.6,0.001]
[1764105565943,0.67256961,2941.7,2941.6,0.001]
[1764105566276,1.89069737,2941.7,2941.6,0.001]
[1764105567560,5.29009227,2941.7,2941.6,0.001]
[1764105568188,4.55626451,2941.7,2941.6,0.001]
[1764105569703,10.92626451,2941.7,2941.6,0.001]
[1764105569928,17.7601446,2941.7,2941.6,0.001]
[1764105570067,2.09629811,2941.6,2941.1,0.001]
[1764105570267,0.584204,2941.2,2941.1,0.001]
[1764105570466,0.90267361,2941.2,2941.1,0.001]
[1764105570774,7.8153497,2941.2,2941.1,0.001]
[1764105570973,7.8153497,2941.2,2940.4,0.001]
[1764105570974,14.8767817,2941.2,2940.4,0.001]
[1764105571299,3.87868217,2940.5,2940.4,0.001]
[1764105571601,4.09468217,2940.5,2940.4,0.001]
[1764105571914,4.57898217,2940.5,2940.4,0.001]
[1764105572196,12.32679077,2940.5,2940.4,0.001]
[1764105572402,8.61374977,2940.5,2940.4,0.001]
[1764105572601,14.52344807,2940.5,2940.4,0.001]
[1764105572804,0.405504,2940.1,2938.8,6.80546887]
[1764105572964,0.216,2940.0,2939.0,0.4636]
[1764105573165,0.7003,2940.0,2939.0,0.4636]
[1764105573361,6.80318388,2939.8,2938.8,3.40271945]
[1764105573800,0.4843,2939.7,2938.8,7.26906887]
[1764105573977,0.216,2939.6,2938.8,7.26906887]
[1764105574295,0.216,2939.6,2938.8,3.86631945]
[1764105574496,0.216,2939.6,2938.7,3.58382972]
[1764105574497,0.4843,2939.5,2938.7,3.58382972]
[1764105574666,0.4843,2939.5,2938.7,7.45029493]
[1764105574871,0.4843,2939.5,2938.7,4.04742972]
[1764105575075,0.4843,2939.5,2938.7,7.45029493]
[1764105575399,3.40205484,2939.4,2938.5,0.001]
[1764105575607,6.80410968,2939.4,2938.5,3.40405831]
[1764105575796,0.4843,2939.3,2938.5,3.40405831]
[1764105576004,0.216,2939.2,2938.5,3.40405831]
[1764105576200,0.216,2939.2,2938.5,0.001]
[1764105576393,0.4843,2939.1,2938.5,0.001]
[1764105576571,0.4809,2938.6,2938.5,0.001]
[1764105576772,0.216,2938.8,2938.5,3.40409681]
[1764105576972,0.216,2938.8,2938.5,0.001]
[1764105576973,0.4809,2938.6,2938.5,0.001]
[1764105577174,1.370704,2938.6,2938.5,0.001]
[1764105577392,5.25458501,2938.6,2938.5,0.001]
[1764105577613,1.1812,2938.6,2938.5,0.001]
[1764105577814,4.58418101,2938.6,2938.5,0.001]
[1764105579006,1.1812,2938.6,2938.5,0.001]
[1764105579509,4.58418101,2938.6,2938.5,0.001]
[1764105580211,5.71527912,2938.6,2938.5,0.001]
[1764105580380,10.05151512,2938.6,2938.5,0.001]
[1764105580581,5.71527912,2938.6,2938.5,0.001]
[1764105581710,10.59500812,2938.6,2938.5,0.001]
[1764105582314,7.73406512,2938.6,2938.5,0.001]
[1764105582517,5.71527912,2938.6,2938.5,0.001]
[1764105582710,8.08206512,2938.6,2938.5,0.001]
[1764105582892,8.21847983,2938.6,2938.5,0.001]
[1764105584612,5.85169383,2938.6,2938.5,0.001]
[1764105584838,7.97869483,2938.6,2938.5,0.001]
[1764105585935,8.26088183,2938.6,2938.5,0.001]
[1764105586916,16.77186011,2938.5,2938.3,0.001]
[1764105587106,8.97895375,2938.4,2938.3,0.001]
[1764105587305,9.16406675,2938.4,2938.3,0.001]
[1764105587654,9.30049216,2938.4,2938.3,0.001]
[1764105587858,12.70370479,2938.4,2938.3,0.001]
[1764105588341,5.28683615,2938.4,2938.3,0.001]
[1764105589036,5.15041074,2938.4,2938.3,0.001]
[1764105589923,4.74490674,2938.4,2938.3,0.001]
[1764105590136,5.15041074,2938.4,2938.3,0.001]
[1764105590326,9.65402074,2938.4,2938.3,0.001]
[1764105590636,7.73160374,2938.4,2938.3,0.001]
[1764105590816,12.49356438,2938.4,2938.3,0.001]
[1764105591005,9.91237138,2938.4,2938.3,0.001]
[1764105591207,10.63602239,2938.4,2938.3,0.001]
[1764105591555,10.63602332,2938.4,2938.3,0.001]
[1764105591750,5.87406268,2938.4,2938.3,0.001]
[1764105591904,5.15041074,2938.4,2938.3,0.001]
[1764105592111,5.87470791,2938.4,2938.3,0.001]
[1764105592311,12.24470791,2938.4,2938.3,0.001]
[1764105593203,12.55944118,2938.4,2938.3,0.001]
[1764105595113,13.47577149,2938.4,2938.3,0.001]
[1764105596255,12.55944118,2938.4,2938.3,0.001]
[1764105597159,13.77707256,2938.4,2938.3,0.001]
[1764105597528,16.16950256,2938.4,2938.3,0.001]
[1764105597739,20.27468411,2938.3,2938.2,0.001]
[1764105597949,22.26671455,2938.3,2938.2,0.001]
[1764105598138,4.53465823,2938.1,2938.0,0.001]
[1764105598336,26.31097088,2938.1,2938.0,0.001]
[1764105598551,24.97541367,2938.1,2938.0,0.001]
[1764105598829,11.90629011,2938.0,2937.9,0.001]
[1764105599066,18.65708119,2938.0,2937.9,0.001]
[1764105599356,1.13109811,2937.9,2936.8,0.463]
[1764105599559,1.09042719,2937.2,2936.6,0.001]
[1764105599861,2.56442855,2937.2,2936.6,0.001]
[1764105600063,4.85828293,2937.2,2936.6,0.001]
[1764105600366,6.57510865,2937.2,2936.6,0.001]
[1764105600535,6.57738501,2937.2,2936.6,0.001]
[1764105601051,10.16738501,2937.2,2936.6,0.001]
[1764105601244,6.57738501,2937.2,2936.6,0.001]
[1764105601442,4.44590982,2937.2,2937.1,0.467]
[1764105601645,5.38750393,2937.2,2937.1,0.467]
[1764105601970,5.88730393,2937.2,2937.1,0.001]
[1764105602164,6.35690393,2937.2,2937.1,0.001]
[1764105602364,8.74933393,2937.2,2937.1,0.001]
[1764105602566,5.88730393,2937.2,2937.1,0.001]
[1764105603425,5.38750393,2937.2,2937.1,0.001]
[1764105603627,5.88730393,2937.2,2937.1,0.001]
[1764105603831,5.38750393,2937.2,2937.1,0.001]
[1764105604040,5.38750393,2937.2,2937.1,1.1415]
[1764105604041,3.08456734,2937.2,2937.1,1.1415]
[1764105604334,1.2573068,2937.2,2937.1,4.54621894]
[1764105604866,2.17157519,2937.2,2937.1,1.1415]
[1764105605268,1.2573068,2937.2,2937.1,1.1415]
[1764105605566,1.2573068,2937.2,2937.1,4.54621894]
[1764105605567,2.1721878,2937.2,2937.1,4.54621894]
[1764105605752,2.1721878,2937.2,2937.1,1.1415]
[1764105606350,1.9561878,2937.2,2937.1,1.1415]
[1764105606756,1.95670139,2937.2,2937.1,1.1415]
[1764105606955,6.38072389,2937.2,2937.1,0.001]
[1764105607271,11.53170982,2937.2,2937.1,0.001]
[1764105607470,14.95966847,2937.2,2937.1,0.001]
[1764105607655,14.95966847,2937.2,2937.0,0.001]
[1764105607656,19.22999111,2937.1,2937.0,0.001]
[1764105607857,0.405504,2936.8,2936.5,0.001]
[1764105608064,4.6647968,2936.7,2936.5,0.001]
[1764105608238,13.05423975,2936.6,2936.5,0.001]
[1764105608566,15.05754655,2936.6,2936.5,0.001]
[1764105608768,17.97816255,2936.6,2936.5,0.001]
[1764105609266,1.13109811,2936.2,2935.4,0.001]
[1764105609457,0.91363857,2935.6,2935.4,0.001]
[1764105609653,1.0413068,2935.5,2935.4,0.001]
[1764105610862,4.44788148,2935.5,2935.4,0.001]
[1764105611230,5.35318548,2935.5,2935.4,0.001]
[1764105611430,6.26682405,2935.5,2935.4,0.001]
[1764105611847,5.35294145,2935.5,2935.4,0.001]
[1764105612048,1.04106277,2935.5,2935.4,0.9588]
[1764105612364,1.95254637,2935.5,2935.4,0.467]
[1764105612737,1.95254637,2935.5,2935.4,0.9588]
[1764105612938,1.25706277,2935.5,2935.4,0.9588]
[1764105613179,0.5327656,2935.5,2935.4,0.9588]
[1764105613468,1.25706277,2935.5,2935.4,0.9588]
[1764105613835,0.5327656,2935.5,2935.4,0.9588]
[1764105614237,0.216,2935.5,2935.4,0.9588]
[1764105614437,0.72869048,2935.7,2935.4,0.9588]
[1764105614652,1.04499093,2935.6,2935.5,0.4918]
[1764105614849,1.04499093,2935.6,2935.5,3.89837468]
[1764105615071,1.04499093,2935.6,2935.5,4.36437468]
[1764105615373,1.21818476,2936.1,2935.5,4.36437468]
[1764105615374,0.216,2936.1,2935.5,4.36437468]
[1764105615575,1.04482941,2936.0,2935.6,0.4918]
[1764105615776,1.04482941,2935.9,2935.6,0.4918]
[1764105615943,0.94159411,2936.1,2935.8,0.466]
[1764105616142,1.04457021,2936.0,2935.6,0.4918]
[1764105616441,0.31617167,2935.9,2935.6,0.4918]
[1764105616842,0.31617167,2935.9,2935.8,0.466]
[1764105617260,1.04457021,2935.9,2935.8,0.9578]
[1764105617461,0.31617167,2935.9,2935.8,0.9578]
[1764105617641,0.216,2936.1,2935.8,0.9578]
[1764105617642,0.31617167,2936.0,2935.8,0.9578]
[1764105617843,1.04457021,2936.0,2935.9,0.4918]
[1764105618071,1.04457021,2936.0,2935.4,0.001]
[1764105618072,4.45056476,2936.0,2935.4,3.89939557]
[1764105618273,1.04457021,2935.9,2935.5,0.4918]
[1764105618578,4.34753496,2936.1,2935.5,0.4918]
[1764105618776,1.04508231,2936.0,2935.8,0.466]
[1764105618945,0.31632095,2935.9,2935.8,0.466]
[1764105619444,0.31636727,2935.9,2935.8,0.466]
[1764105619650,1.04512863,2935.9,2935.8,0.466]
[1764105620050,1.04519987,2935.9,2935.8,0.466]
[1764105622267,0.31636727,2935.9,2935.8,0.466]
[1764105622983,4.45153007,2935.9,2935.8,0.466]
[1764105623211,4.94613007,2935.9,2935.4,0.001]
[1764105623390,0.31636727,2935.8,2935.5,0.4745]
[1764105623577,1.93489135,2936.6,2936.3,0.1794]
[1764105623780,0.31657103,2936.5,2936.3,0.1794]
[1764105623989,0.216,2936.7,2936.6,0.4632]
[1764105624156,1.2619592,2936.7,2936.6,0.4632]
[1764105624685,1.2619592,2936.7,2936.1,0.1794]
[1764105624686,3.93776589,2936.7,2936.1,0.1794]
[1764105624885,0.91104076,2936.9,2936.6,0.4632]
[1764105625187,1.26242577,2936.8,2936.2,3.88026255]
[1764105625386,1.26242577,2936.8,2936.3,0.4745]
[1764105625387,0.31672595,2936.7,2936.3,0.4745]
[1764105625963,0.31672595,2936.7,2936.6,0.4632]
[1764105627296,1.04642577,2936.7,2936.6,0.9377]
[1764105627599,0.31672595,2936.7,2936.6,0.9377]
[1764105628099,2.21174783,2937.4,2936.6,7.74829728]
[1764105628300,0.31720043,2937.3,2937.1,0.645]
[1764105628800,1.51670707,2937.4,2937.1,1.1195]